[Event "Late Titled Tuesday Blitz February 8 2022"]
[White "Terletsky, Oleg"]
[Black "Villegas, Pierre"]
[WhiteFideId "14116774"]
[BlackFideId "654183"]
[WhiteElo "2050"]
[BlackElo "2410"]
[Result "0-1"]
[Round "05"]
[TimeControl "180+1"]
[Date "2022.02.09"]
[WhiteClock "0:00:01"]
[BlackClock "0:00:57"]

1. e4 {[%clk 0:03:00]}  c6 {[%clk 0:02:59]} 2. d4 {[%clk 0:02:59]}  d5 {[%clk 0:03:00]} 3. Nc3 {[%clk 0:03:00]}  b5 {[%clk 0:03:00]} 4. Bd3 {[%clk 0:02:43]}  b4 {[%clk 0:02:58]} 5. Nce2 {[%clk 0:02:40]}  e6 {[%clk 0:02:58]} 6. Nf3 {[%clk 0:02:19]}  Nf6 {[%clk 0:02:52]} 7. Ng3 {[%clk 0:02:18]}  Ba6 {[%clk 0:02:47]} 8. e5 {[%clk 0:02:00]}  Nfd7 {[%clk 0:02:44]} 9. O-O {[%clk 0:01:58]}  Bxd3 {[%clk 0:02:33]} 10. Qxd3 {[%clk 0:01:59]}  Be7 {[%clk 0:02:33]} 11. a3 {[%clk 0:01:44]}  c5 {[%clk 0:02:16]} 12. axb4 {[%clk 0:01:39]}  cxb4 {[%clk 0:02:13]} 13. Nh5 {[%clk 0:01:17]}  O-O {[%clk 0:02:02]} 14. h4 {[%clk 0:01:07]}  Bxh4 {[%clk 0:01:48]} 15. g3 {[%clk 0:01:07]}  Be7 {[%clk 0:01:48]} 16. Kg2 {[%clk 0:01:05]}  f5 {[%clk 0:01:33]} 17. exf6 {[%clk 0:00:40]}  Nxf6 {[%clk 0:01:33]} 18. Nxf6+ {[%clk 0:00:32]}  Bxf6 {[%clk 0:01:33]} 19. Rh1 {[%clk 0:00:32]}  g6 {[%clk 0:01:30]} 20. Bh6 {[%clk 0:00:26]}  Rf7 {[%clk 0:01:27]} 21. Rae1 {[%clk 0:00:22]}  Qd7 {[%clk 0:01:26]} 22. Ng5 {[%clk 0:00:20]}  Bxg5 {[%clk 0:01:25]} 23. Bxg5 {[%clk 0:00:20]}  Nc6 {[%clk 0:01:25]} 24. Rh4 {[%clk 0:00:15]}  Raf8 {[%clk 0:01:24]} 25. f4 {[%clk 0:00:13]}  Ne7 {[%clk 0:01:23]} 26. Bxe7 {[%clk 0:00:12]}  Qxe7 {[%clk 0:01:24]} 27. Re5 {[%clk 0:00:10]}  Rc8 {[%clk 0:01:14]} 28. Rh1 {[%clk 0:00:09]}  Rc6 {[%clk 0:01:08]} 29. Rhe1 {[%clk 0:00:08]}  Qc7 {[%clk 0:01:08]} 30. R1e2 {[%clk 0:00:08]}  Rf6 {[%clk 0:01:08]} 31. Kh3 {[%clk 0:00:03]}  Kg7 {[%clk 0:01:08]} 32. Kg4 {[%clk 0:00:03]}  Rc4 {[%clk 0:01:05]} 33. Kf3 {[%clk 0:00:03]}  Rc6 {[%clk 0:01:02]} 34. Kg2 {[%clk 0:00:03]}  a5 {[%clk 0:01:02]} 35. Kh3 {[%clk 0:00:02]}  a4 {[%clk 0:01:02]} 36. Kg2 {[%clk 0:00:02]}  Qb7 {[%clk 0:00:59]} 37. Qe3 {[%clk 0:00:02]}  Kf7 {[%clk 0:00:56]} 38. Kf3 {[%clk 0:00:01]}  Ra6 {[%clk 0:00:56]} 39. Kg4 {[%clk 0:00:01]}  a3 {[%clk 0:00:56]} 40. bxa3 {[%clk 0:00:02]}  bxa3 {[%clk 0:00:57]} 41. Kh3 {[%clk 0:00:01]}  a2 {[%clk 0:00:57]} 0-1


[Site "https://www.chess.com"]

[Event "Late Titled Tuesday Blitz February 8 2022"]
[White "Timofeev, Artyom"]
[Black "Sviridov, Valery"]
[WhiteFideId "4140419"]
[BlackFideId "4120680"]
[WhiteElo "2583"]
[BlackElo "2454"]
[Result "0-1"]
[Round "05"]
[TimeControl "180+1"]
[Date "2022.02.08"]
[WhiteClock "0:00:13"]
[BlackClock "0:00:41"]

1. d4 {[%clk 0:03:00]}  g6 {[%clk 0:02:59]} 2. Nf3 {[%clk 0:03:00]}  Bg7 {[%clk 0:02:59]} 3. e4 {[%clk 0:03:00]}  d6 {[%clk 0:02:59]} 4. c3 {[%clk 0:03:00]}  e6 {[%clk 0:02:54]} 5. Bg5 {[%clk 0:02:57]}  Ne7 {[%clk 0:02:53]} 6. Nbd2 {[%clk 0:02:48]}  h6 {[%clk 0:02:52]} 7. Be3 {[%clk 0:02:48]}  b6 {[%clk 0:02:51]} 8. Bb5+ {[%clk 0:02:44]}  Nd7 {[%clk 0:02:51]} 9. O-O {[%clk 0:02:40]}  a6 {[%clk 0:02:51]} 10. Bd3 {[%clk 0:02:40]}  Bb7 {[%clk 0:02:51]} 11. Re1 {[%clk 0:02:40]}  O-O {[%clk 0:02:47]} 12. Nf1 {[%clk 0:02:39]}  f5 {[%clk 0:02:40]} 13. Qb3 {[%clk 0:02:16]}  d5 {[%clk 0:02:15]} 14. exd5 {[%clk 0:02:08]}  Nxd5 {[%clk 0:02:14]} 15. Rad1 {[%clk 0:02:04]}  Kh7 {[%clk 0:02:10]} 16. Bc1 {[%clk 0:02:03]}  Qf6 {[%clk 0:01:53]} 17. c4 {[%clk 0:01:57]}  Ne7 {[%clk 0:01:53]} 18. Be2 {[%clk 0:01:52]}  Rad8 {[%clk 0:01:48]} 19. Bf4 {[%clk 0:01:50]}  Rc8 {[%clk 0:01:27]} 20. h4 {[%clk 0:01:35]}  Bxf3 {[%clk 0:01:17]} 21. Bxf3 {[%clk 0:01:35]}  Qxh4 {[%clk 0:01:18]} 22. Rxe6 {[%clk 0:01:27]}  Qxf4 {[%clk 0:01:17]} 23. Rxe7 {[%clk 0:01:27]}  Nf6 {[%clk 0:01:16]} 24. c5 {[%clk 0:01:07]}  Rfe8 {[%clk 0:01:07]} 25. Rxe8 {[%clk 0:01:06]}  Rxe8 {[%clk 0:01:08]} 26. cxb6 {[%clk 0:01:06]}  cxb6 {[%clk 0:01:09]} 27. Qxb6 {[%clk 0:01:06]}  g5 {[%clk 0:01:10]} 28. Ng3 {[%clk 0:00:49]}  g4 {[%clk 0:01:08]} 29. Be2 {[%clk 0:00:49]}  Ne4 {[%clk 0:00:55]} 30. Nxe4 {[%clk 0:00:45]}  Rxe4 {[%clk 0:00:56]} 31. Bd3 {[%clk 0:00:41]}  Bxd4 {[%clk 0:00:52]} 32. Qb7+ {[%clk 0:00:32]}  Kg6 {[%clk 0:00:53]} 33. Qc6+ {[%clk 0:00:16]}  Kg5 {[%clk 0:00:52]} 34. Qc2 {[%clk 0:00:15]}  Re5 {[%clk 0:00:45]} 35. Kf1 {[%clk 0:00:13]}  g3 {[%clk 0:00:45]} 36. Qd2 {[%clk 0:00:13]}  Be3 {[%clk 0:00:44]} 37. Qe2 {[%clk 0:00:13]}  Bxf2 {[%clk 0:00:43]} 38. Qf3 {[%clk 0:00:13]}  Qh4 {[%clk 0:00:41]} 0-1


[Site "https://www.chess.com"]

[Event "Late Titled Tuesday Blitz February 8 2022"]
[White "Triapishko, Alexandr"]
[Black "Solon, Nathan"]
[WhiteFideId "14122286"]
[BlackFideId "2017229"]
[WhiteElo "2479"]
[BlackElo "2559"]
[Result "1/2-1/2"]
[Round "05"]
[TimeControl "180+1"]
[Date "2022.02.08"]
[WhiteClock "0:00:24"]
[BlackClock "0:00:21"]

1. e4 {[%clk 0:03:00]}  c5 {[%clk 0:02:04]} 2. Nf3 {[%clk 0:02:56]}  d6 {[%clk 0:02:04]} 3. d4 {[%clk 0:02:56]}  cxd4 {[%clk 0:02:05]} 4. Nxd4 {[%clk 0:02:57]}  Nf6 {[%clk 0:02:06]} 5. Nc3 {[%clk 0:02:57]}  a6 {[%clk 0:02:06]} 6. Be3 {[%clk 0:02:56]}  e5 {[%clk 0:02:06]} 7. Nde2 {[%clk 0:02:57]}  Be6 {[%clk 0:02:04]} 8. Ng3 {[%clk 0:02:56]}  h5 {[%clk 0:02:02]} 9. Be2 {[%clk 0:02:32]}  h4 {[%clk 0:02:02]} 10. Nf1 {[%clk 0:02:31]}  Nbd7 {[%clk 0:01:58]} 11. Bg5 {[%clk 0:02:31]}  Rc8 {[%clk 0:01:54]} 12. Ne3 {[%clk 0:02:25]}  Qa5 {[%clk 0:01:52]} 13. Bxf6 {[%clk 0:02:24]}  Nxf6 {[%clk 0:01:53]} 14. O-O {[%clk 0:02:19]}  h3 {[%clk 0:01:49]} 15. g3 {[%clk 0:02:18]}  Rxc3 {[%clk 0:01:46]} 16. bxc3 {[%clk 0:02:19]}  Nxe4 {[%clk 0:01:46]} 17. c4 {[%clk 0:01:58]}  Nc3 {[%clk 0:01:36]} 18. Qd2 {[%clk 0:01:50]}  Nxe2+ {[%clk 0:01:36]} 19. Qxe2 {[%clk 0:01:51]}  Qc5 {[%clk 0:01:26]} 20. Rab1 {[%clk 0:01:50]}  Qc6 {[%clk 0:01:26]} 21. f4 {[%clk 0:01:48]}  exf4 {[%clk 0:01:19]} 22. Rxf4 {[%clk 0:01:43]}  Be7 {[%clk 0:01:16]} 23. Nf5 {[%clk 0:01:41]}  Bf6 {[%clk 0:01:00]} 24. Rxb7 {[%clk 0:01:08]}  O-O {[%clk 0:00:46]} 25. Ne7+ {[%clk 0:00:51]}  Bxe7 {[%clk 0:00:46]} 26. Rxe7 {[%clk 0:00:52]}  Rb8 {[%clk 0:00:46]} 27. Rxe6 {[%clk 0:00:52]}  Rb1+ {[%clk 0:00:41]} 28. Rf1 {[%clk 0:00:42]}  Rxf1+ {[%clk 0:00:41]} 29. Kxf1 {[%clk 0:00:42]}  Qh1+ {[%clk 0:00:40]} 30. Kf2 {[%clk 0:00:43]}  Qxh2+ {[%clk 0:00:40]} 31. Kf3 {[%clk 0:00:42]}  Qh1+ {[%clk 0:00:36]} 32. Kg4 {[%clk 0:00:42]}  fxe6 {[%clk 0:00:30]} 33. Qxe6+ {[%clk 0:00:43]}  Kh7 {[%clk 0:00:28]} 34. Qf5+ {[%clk 0:00:42]}  Kg8 {[%clk 0:00:27]} 35. Qc8+ {[%clk 0:00:41]}  Kh7 {[%clk 0:00:27]} 36. Qf5+ {[%clk 0:00:37]}  Kh8 {[%clk 0:00:27]} 37. Qh5+ {[%clk 0:00:32]}  Kg8 {[%clk 0:00:28]} 38. Qxh3 {[%clk 0:00:25]}  Qe4+ {[%clk 0:00:27]} 39. Kg5 {[%clk 0:00:26]}  Qxc4 {[%clk 0:00:26]} 40. Qf5 {[%clk 0:00:22]}  Qxa2 {[%clk 0:00:20]} 41. Qc8+ {[%clk 0:00:22]}  Kh7 {[%clk 0:00:20]} 42. Qh3+ {[%clk 0:00:22]}  Kg8 {[%clk 0:00:20]} 43. Qc8+ {[%clk 0:00:23]}  Kh7 {[%clk 0:00:20]} 44. Qh3+ {[%clk 0:00:23]}  Kg8 {[%clk 0:00:21]} 45. Qc8+ {[%clk 0:00:24]} 1/2-1/2


[Site "https://www.chess.com"]

[Event "Late Titled Tuesday Blitz February 8 2022"]
[White "Vargas Pereda, Jesus Manue"]
[Black "Xie, Bryan"]
[WhiteFideId "5115710"]
[BlackFideId "30941296"]
[WhiteElo "1748"]
[BlackElo "1899"]
[Result "0-1"]
[Round "05"]
[TimeControl "180+1"]
[Date "2022.02.09"]
[WhiteClock "0:00:35"]
[BlackClock "0:01:38"]

1. d4 {[%clk 0:03:00]}  Nf6 {[%clk 0:02:40]} 2. Nf3 {[%clk 0:02:58]}  e6 {[%clk 0:02:39]} 3. Bf4 {[%clk 0:02:55]}  b6 {[%clk 0:02:32]} 4. e3 {[%clk 0:02:48]}  Bb7 {[%clk 0:02:32]} 5. Bd3 {[%clk 0:02:39]}  Be7 {[%clk 0:02:29]} 6. O-O {[%clk 0:02:09]}  Nh5 {[%clk 0:02:24]} 7. Be5 {[%clk 0:02:03]}  d6 {[%clk 0:02:22]} 8. Bg3 {[%clk 0:01:43]}  Nxg3 {[%clk 0:02:22]} 9. hxg3 {[%clk 0:01:44]}  Nd7 {[%clk 0:02:22]} 10. c4 {[%clk 0:01:43]}  c5 {[%clk 0:02:13]} 11. Nc3 {[%clk 0:01:42]}  Rc8 {[%clk 0:02:07]} 12. d5 {[%clk 0:01:34]}  exd5 {[%clk 0:02:06]} 13. Nxd5 {[%clk 0:01:27]}  Bxd5 {[%clk 0:02:06]} 14. cxd5 {[%clk 0:01:27]}  O-O {[%clk 0:02:06]} 15. e4 {[%clk 0:01:14]}  c4 {[%clk 0:02:03]} 16. Bc2 {[%clk 0:01:12]}  Bf6 {[%clk 0:02:02]} 17. Rb1 {[%clk 0:01:09]}  Nc5 {[%clk 0:01:59]} 18. b4 {[%clk 0:01:04]}  cxb3 {[%clk 0:01:56]} 19. Bxb3 {[%clk 0:01:04]}  Nxe4 {[%clk 0:01:55]} 20. Rc1 {[%clk 0:00:54]}  Nc3 {[%clk 0:01:48]} 21. Qd3 {[%clk 0:00:47]}  Re8 {[%clk 0:01:47]} 22. Rce1 {[%clk 0:00:39]}  Qd7 {[%clk 0:01:42]} 23. Nd4 {[%clk 0:00:35]}  Bxd4 {[%clk 0:01:38]} 24. Qxd4 {[%clk 0:00:35]}  Ne2+ {[%clk 0:01:38]} 25. Rxe2 {[%clk 0:00:35]}  Rxe2 {[%clk 0:01:38]} 0-1


[Site "https://www.chess.com"]

[Event "Late Titled Tuesday Blitz February 8 2022"]
[White "Yang, Qindong"]
[Black "Ambartsumova, Karina"]
[WhiteFideId "8603758"]
[BlackFideId "4166299"]
[WhiteElo "2101"]
[BlackElo "2262"]
[Result "1-0"]
[Round "05"]
[TimeControl "180+1"]
[Date "2022.02.09"]
[WhiteClock "0:00:07"]
[BlackClock "0:00:07"]

1. d4 {[%clk 0:02:59]}  Nf6 {[%clk 0:02:59]} 2. c4 {[%clk 0:03:00]}  g6 {[%clk 0:02:59]} 3. Nf3 {[%clk 0:03:00]}  Bg7 {[%clk 0:03:00]} 4. g3 {[%clk 0:02:58]}  O-O {[%clk 0:02:59]} 5. Bg2 {[%clk 0:02:58]}  d6 {[%clk 0:03:00]} 6. O-O {[%clk 0:02:59]}  c6 {[%clk 0:02:58]} 7. Nc3 {[%clk 0:02:59]}  Bf5 {[%clk 0:02:58]} 8. Ne1 {[%clk 0:02:57]}  Be6 {[%clk 0:02:55]} 9. d5 {[%clk 0:02:46]}  cxd5 {[%clk 0:02:50]} 10. cxd5 {[%clk 0:02:45]}  Bd7 {[%clk 0:02:50]} 11. Nd3 {[%clk 0:02:42]}  b5 {[%clk 0:02:44]} 12. e4 {[%clk 0:02:35]}  Ne8 {[%clk 0:02:33]} 13. Be3 {[%clk 0:02:20]}  a5 {[%clk 0:02:28]} 14. Qd2 {[%clk 0:02:12]}  b4 {[%clk 0:02:27]} 15. Ne2 {[%clk 0:02:12]}  Nc7 {[%clk 0:02:11]} 16. Rfc1 {[%clk 0:02:02]}  Nb5 {[%clk 0:02:10]} 17. Rc4 {[%clk 0:01:30]}  Na6 {[%clk 0:02:08]} 18. Rac1 {[%clk 0:01:27]}  Qb8 {[%clk 0:02:07]} 19. Bh6 {[%clk 0:01:19]}  Qb7 {[%clk 0:01:55]} 20. Bxg7 {[%clk 0:01:18]}  Kxg7 {[%clk 0:01:56]} 21. e5 {[%clk 0:01:16]}  Bf5 {[%clk 0:01:26]} 22. e6 {[%clk 0:01:08]}  Rac8 {[%clk 0:01:16]} 23. exf7 {[%clk 0:00:58]}  Rxc4 {[%clk 0:01:08]} 24. Rxc4 {[%clk 0:00:58]}  Rxf7 {[%clk 0:01:06]} 25. Nef4 {[%clk 0:00:58]}  Qd7 {[%clk 0:01:01]} 26. Qe3 {[%clk 0:00:55]}  Nac7 {[%clk 0:01:00]} 27. h3 {[%clk 0:00:52]}  Bxd3 {[%clk 0:00:53]} 28. Qxd3 {[%clk 0:00:48]}  Qf5 {[%clk 0:00:52]} 29. Be4 {[%clk 0:00:37]}  Qe5 {[%clk 0:00:51]} 30. Qd2 {[%clk 0:00:24]}  Rf6 {[%clk 0:00:29]} 31. Nd3 {[%clk 0:00:23]}  Qh5 {[%clk 0:00:29]} 32. Nf4 {[%clk 0:00:20]}  Qe5 {[%clk 0:00:24]} 33. Nd3 {[%clk 0:00:20]}  Qh5 {[%clk 0:00:24]} 34. Nf4 {[%clk 0:00:11]}  Qh6 {[%clk 0:00:24]} 35. h4 {[%clk 0:00:08]}  g5 {[%clk 0:00:17]} 36. hxg5 {[%clk 0:00:08]}  Qxg5 {[%clk 0:00:18]} 37. Qe2 {[%clk 0:00:05]}  Rh6 {[%clk 0:00:17]} 38. Bg2 {[%clk 0:00:05]}  Qe5 {[%clk 0:00:16]} 39. Re4 {[%clk 0:00:04]}  Qf6 {[%clk 0:00:05]} 40. Rxe7+ {[%clk 0:00:05]}  Kg8 {[%clk 0:00:06]} 41. Rd7 {[%clk 0:00:05]}  Qf8 {[%clk 0:00:06]} 42. Re7 {[%clk 0:00:05]}  Rf6 {[%clk 0:00:06]} 43. Qg4+ {[%clk 0:00:05]}  Kh8 {[%clk 0:00:06]} 44. Rd7 {[%clk 0:00:05]}  Rf7 {[%clk 0:00:06]} 45. Rxf7 {[%clk 0:00:05]}  Qxf7 {[%clk 0:00:07]} 46. Qc8+ {[%clk 0:00:05]}  Qg8 {[%clk 0:00:07]} 47. Qd7 {[%clk 0:00:06]}  Qg7 {[%clk 0:00:06]} 48. Qd8+ {[%clk 0:00:06]}  Qg8 {[%clk 0:00:07]} 49. Qf6+ {[%clk 0:00:06]}  Qg7 {[%clk 0:00:07]} 50. Qf5 {[%clk 0:00:07]}  Qxb2 {[%clk 0:00:07]} 51. Qf8# {[%clk 0:00:07]} 1-0


[Site "https://www.chess.com"]

[Event "Late Titled Tuesday Blitz February 8 2022"]
[White "Zhigalko, Sergei"]
[Black "Goryachkina, Aleksandra"]
[WhiteFideId "13502956"]
[BlackFideId "4147103"]
[WhiteElo "2662"]
[BlackElo "2426"]
[Result "1-0"]
[Round "05"]
[TimeControl "180+1"]
[Date "2022.02.08"]
[WhiteClock "0:00:19"]
[BlackClock "0:00:17"]

1. e4 {[%clk 0:03:00]}  c5 {[%clk 0:02:59]} 2. Nf3 {[%clk 0:03:00]}  e6 {[%clk 0:02:59]} 3. c3 {[%clk 0:02:59]}  Nf6 {[%clk 0:02:54]} 4. e5 {[%clk 0:03:00]}  Nd5 {[%clk 0:02:54]} 5. Bc4 {[%clk 0:03:01]}  d6 {[%clk 0:02:53]} 6. d4 {[%clk 0:03:01]}  cxd4 {[%clk 0:02:53]} 7. cxd4 {[%clk 0:03:02]}  Nc6 {[%clk 0:02:52]} 8. O-O {[%clk 0:03:02]}  Be7 {[%clk 0:02:52]} 9. Bd2 {[%clk 0:03:02]}  O-O {[%clk 0:02:50]} 10. Nc3 {[%clk 0:03:03]}  Nxc3 {[%clk 0:02:50]} 11. Bxc3 {[%clk 0:03:04]}  dxe5 {[%clk 0:02:49]} 12. dxe5 {[%clk 0:03:04]}  a6 {[%clk 0:02:49]} 13. Bd3 {[%clk 0:03:03]}  b5 {[%clk 0:02:26]} 14. Qe2 {[%clk 0:03:03]}  Bb7 {[%clk 0:02:18]} 15. Rad1 {[%clk 0:02:47]}  Qb6 {[%clk 0:02:12]} 16. Qe4 {[%clk 0:02:47]}  g6 {[%clk 0:02:11]} 17. Qf4 {[%clk 0:02:47]}  Rad8 {[%clk 0:01:54]} 18. Qh6 {[%clk 0:02:08]}  Rd5 {[%clk 0:00:48]} 19. Be4 {[%clk 0:01:30]}  Rxd1 {[%clk 0:00:47]} 20. Rxd1 {[%clk 0:01:30]}  b4 {[%clk 0:00:47]} 21. Bd2 {[%clk 0:01:30]}  Rd8 {[%clk 0:00:42]} 22. Ng5 {[%clk 0:01:05]}  Bxg5 {[%clk 0:00:37]} 23. Qxg5 {[%clk 0:01:06]}  Qd4 {[%clk 0:00:28]} 24. Bxc6 {[%clk 0:00:26]}  Bxc6 {[%clk 0:00:28]} 25. h3 {[%clk 0:00:27]}  Bb5 {[%clk 0:00:17]} 26. Qf6 {[%clk 0:00:19]} 1-0


[Site "https://www.chess.com"]

[Event "Late Titled Tuesday Blitz February 8 2022"]
[White "Ambartsumova, Karina"]
[Black "Jaskolka, Tomasz"]
[WhiteFideId "4166299"]
[BlackFideId "1170791"]
[WhiteElo "2262"]
[BlackElo "2054"]
[Result "1/2-1/2"]
[Round "06"]
[TimeControl "180+1"]
[Date "2022.02.09"]
[WhiteClock "0:00:02"]
[BlackClock "0:00:03"]

1. c4 {[%clk 0:03:00]}  g6 {[%clk 0:02:54]} 2. Nf3 {[%clk 0:03:00]}  Bg7 {[%clk 0:02:55]} 3. g3 {[%clk 0:03:01]}  Nf6 {[%clk 0:02:51]} 4. Bg2 {[%clk 0:03:01]}  d5 {[%clk 0:02:51]} 5. cxd5 {[%clk 0:03:00]}  Nxd5 {[%clk 0:02:51]} 6. Nc3 {[%clk 0:03:01]}  Nxc3 {[%clk 0:02:51]} 7. dxc3 {[%clk 0:03:00]}  O-O {[%clk 0:02:52]} 8. Qc2 {[%clk 0:02:58]}  Nc6 {[%clk 0:02:48]} 9. O-O {[%clk 0:02:58]}  e5 {[%clk 0:02:42]} 10. Rd1 {[%clk 0:02:45]}  Qe7 {[%clk 0:02:25]} 11. e4 {[%clk 0:02:43]}  Bg4 {[%clk 0:02:22]} 12. h3 {[%clk 0:02:43]}  Bxf3 {[%clk 0:02:21]} 13. Bxf3 {[%clk 0:02:44]}  Nd8 {[%clk 0:02:13]} 14. Be3 {[%clk 0:02:32]}  Ne6 {[%clk 0:02:13]} 15. b4 {[%clk 0:02:32]}  Rfd8 {[%clk 0:02:12]} 16. Rxd8+ {[%clk 0:02:30]}  Rxd8 {[%clk 0:02:11]} 17. Rd1 {[%clk 0:02:30]}  b6 {[%clk 0:02:08]} 18. a4 {[%clk 0:02:13]}  Rxd1+ {[%clk 0:01:33]} 19. Qxd1 {[%clk 0:02:13]}  Qd8 {[%clk 0:01:33]} 20. Qd5 {[%clk 0:02:02]}  Bf6 {[%clk 0:01:13]} 21. a5 {[%clk 0:02:00]}  Kg7 {[%clk 0:01:11]} 22. h4 {[%clk 0:01:56]}  h6 {[%clk 0:01:04]} 23. Qb7 {[%clk 0:01:39]}  Qd3 {[%clk 0:00:43]} 24. Qxa7 {[%clk 0:01:37]}  Qxc3 {[%clk 0:00:43]} 25. axb6 {[%clk 0:01:34]}  cxb6 {[%clk 0:00:42]} 26. Qxb6 {[%clk 0:01:34]}  Nd4 {[%clk 0:00:37]} 27. Kg2 {[%clk 0:00:57]}  Nc2 {[%clk 0:00:27]} 28. Bxh6+ {[%clk 0:00:26]}  Kxh6 {[%clk 0:00:26]} 29. Qxf6 {[%clk 0:00:26]}  Ne1+ {[%clk 0:00:23]} 30. Kh3 {[%clk 0:00:19]}  Kh7 {[%clk 0:00:14]} 31. Qxf7+ {[%clk 0:00:19]}  Kh6 {[%clk 0:00:15]} 32. Qf8+ {[%clk 0:00:19]}  Kh7 {[%clk 0:00:15]} 33. Bg4 {[%clk 0:00:16]}  Qd3 {[%clk 0:00:12]} 34. Qe7+ {[%clk 0:00:12]}  Kh6 {[%clk 0:00:11]} 35. Qg5+ {[%clk 0:00:11]}  Kh7 {[%clk 0:00:12]} 36. Qe7+ {[%clk 0:00:05]}  Kh6 {[%clk 0:00:12]} 37. Bf5 {[%clk 0:00:01]}  Qf1+ {[%clk 0:00:11]} 38. Kg4 {[%clk 0:00:01]}  Qe2+ {[%clk 0:00:11]} 39. Kh3 {[%clk 0:00:02]}  Qf1+ {[%clk 0:00:08]} 40. Kg4 {[%clk 0:00:02]}  Qe2+ {[%clk 0:00:08]} 41. Kh3 {[%clk 0:00:03]}  gxf5 {[%clk 0:00:02]} 42. Qf6+ {[%clk 0:00:03]}  Kh7 {[%clk 0:00:03]} 43. Qxf5+ {[%clk 0:00:02]}  Kg7 {[%clk 0:00:03]} 44. Qxe5+ {[%clk 0:00:03]}  Kf7 {[%clk 0:00:03]} 45. Qf5+ {[%clk 0:00:03]}  Ke7 {[%clk 0:00:04]} 46. Qg5+ {[%clk 0:00:03]}  Kf7 {[%clk 0:00:03]} 47. Qf4+ {[%clk 0:00:02]}  Ke7 {[%clk 0:00:03]} 48. Qe5+ {[%clk 0:00:02]}  Kf7 {[%clk 0:00:03]} 49. Qf5+ {[%clk 0:00:01]}  Ke7 {[%clk 0:00:03]} 50. Qg5+ {[%clk 0:00:01]}  Kf7 {[%clk 0:00:03]} 51. Qd5+ {[%clk 0:00:01]}  Ke7 {[%clk 0:00:04]} 52. Qc5+ {[%clk 0:00:01]}  Kf7 {[%clk 0:00:03]} 53. Qf5+ {[%clk 0:00:02]} 1/2-1/2


[Site "https://www.chess.com"]

[Event "Late Titled Tuesday Blitz February 8 2022"]
[White "Araujo, Everson De Moura"]
[Black "Golubovskis, Maksims"]
[WhiteFideId "22737197"]
[BlackFideId "11608528"]
[WhiteElo "1861"]
[BlackElo "2066"]
[Result "1-0"]
[Round "06"]
[TimeControl "180+1"]
[Date "2022.02.09"]
[WhiteClock "0:01:20"]
[BlackClock "0:00:01"]

1. Nf3 {[%clk 0:03:00]}  Nf6 {[%clk 0:02:45]} 2. b3 {[%clk 0:03:01]}  d5 {[%clk 0:02:41]} 3. Bb2 {[%clk 0:03:01]}  c5 {[%clk 0:02:39]} 4. e3 {[%clk 0:03:01]}  Bf5 {[%clk 0:02:32]} 5. Be2 {[%clk 0:02:58]}  e6 {[%clk 0:02:30]} 6. O-O {[%clk 0:02:58]}  Bd6 {[%clk 0:02:29]} 7. Nh4 {[%clk 0:02:57]}  Bg6 {[%clk 0:02:26]} 8. c4 {[%clk 0:02:55]}  Bc7 {[%clk 0:02:23]} 9. d4 {[%clk 0:02:52]}  Qd6 {[%clk 0:01:59]} 10. g3 {[%clk 0:02:51]}  Nc6 {[%clk 0:01:58]} 11. dxc5 {[%clk 0:02:50]}  Qxc5 {[%clk 0:01:56]} 12. Nc3 {[%clk 0:02:50]}  O-O-O {[%clk 0:01:44]} 13. cxd5 {[%clk 0:02:45]}  Nxd5 {[%clk 0:01:38]} 14. Nxd5 {[%clk 0:02:45]}  Rxd5 {[%clk 0:01:38]} 15. Qc1 {[%clk 0:02:44]}  Qd6 {[%clk 0:01:36]} 16. Bf3 {[%clk 0:02:43]}  Rd3 {[%clk 0:01:04]} 17. Bxg7 {[%clk 0:02:41]}  Rg8 {[%clk 0:01:03]} 18. Bf6 {[%clk 0:02:34]}  Bf5 {[%clk 0:01:02]} 19. Nxf5 {[%clk 0:02:28]}  exf5 {[%clk 0:01:01]} 20. Bh4 {[%clk 0:02:21]}  Qh6 {[%clk 0:00:58]} 21. Kh1 {[%clk 0:02:20]}  f4 {[%clk 0:00:38]} 22. Bxc6 {[%clk 0:01:58]}  bxc6 {[%clk 0:00:26]} 23. exf4 {[%clk 0:01:47]}  Qh5 {[%clk 0:00:20]} 24. Qxc6 {[%clk 0:01:44]}  Rg6 {[%clk 0:00:15]} 25. Qa8+ {[%clk 0:01:42]}  Kd7 {[%clk 0:00:15]} 26. Rfe1 {[%clk 0:01:39]}  Qf3+ {[%clk 0:00:12]} 27. Qxf3 {[%clk 0:01:39]}  Rxf3 {[%clk 0:00:13]} 28. Re7+ {[%clk 0:01:35]}  Kd6 {[%clk 0:00:12]} 29. Rd1+ {[%clk 0:01:33]}  Kc6 {[%clk 0:00:11]} 30. Rc1+ {[%clk 0:01:33]}  Kb6 {[%clk 0:00:11]} 31. Rexc7 {[%clk 0:01:32]}  Rxf2 {[%clk 0:00:11]} 32. R1c2 {[%clk 0:01:29]}  Rf1+ {[%clk 0:00:09]} 33. Kg2 {[%clk 0:01:29]}  Rd1 {[%clk 0:00:07]} 34. Be7 {[%clk 0:01:29]}  Rd5 {[%clk 0:00:04]} 35. Bb4 {[%clk 0:01:28]}  Rb5 {[%clk 0:00:03]} 36. a3 {[%clk 0:01:27]}  a5 {[%clk 0:00:03]} 37. Be7 {[%clk 0:01:22]}  Re6 {[%clk 0:00:03]} 38. Bd8 {[%clk 0:01:21]}  Rxb3 {[%clk 0:00:01]} 39. Re7+ {[%clk 0:01:20]} 1-0


[Site "https://www.chess.com"]